bitfinex/quotes_ETHUSD_20241119
["timestamp","ask_amount","ask_price","bid_price","bid_amount"]
[1732051690520,3.66506688,3087.5,3086.5,4.53474]
[1732051690724,6.47893,3087.0,3086.5,1.6189]
[1732051690936,2.00596688,3087.3,3086.5,1.6189]
[1732051690937,2.00596688,3087.2,3086.5,1.6189]
[1732051691118,2.00596688,3087.2,3085.7,2.92665]
[1732051691119,2.00596688,3087.0,3086.3,2.9161]
[1732051691448,3.23966,3086.8,3086.4,0.4535]
[1732051691646,3.23988,3086.6,3086.2,1.6189]
[1732051691963,3.23981,3086.6,3086.2,1.6189]
[1732051692168,4.89876,3086.8,3086.2,4.53509]
[1732051692329,4.89876,3086.8,3086.3,0.453509]
[1732051692330,3.23966,3086.8,3086.3,0.453509]
[1732051692531,3.23966,3086.8,3086.3,3.369589]
[1732051692730,3.23942,3087.0,3086.4,2.91599]
[1732051692961,3.23962,3086.8,3086.4,0.7904589]
[1732051693370,0.55,3087.0,3085.9,1.6325]
[1732051693522,3.24012,3086.3,3085.9,1.6325]
[1732051693729,3.24023,3086.2,3085.9,1.6325]
[1732051693956,3.24052,3086.0,3085.6,1.6349]
[1732051694317,3.24066,3085.8,3085.2,1.6349]
[1732051694522,0.55,3086.3,3085.4,2.91695]
[1732051694523,3.24058,3085.9,3085.4,2.91695]
[1732051694919,3.24058,3085.9,3085.3,2.91705]
[1732051694920,3.24033,3086.1,3085.2,1.6349]
[1732051695120,5.24581688,3086.6,3085.4,1.6349]
[1732051695381,3.23985,3086.6,3086.0,2.9163]
[1732051695670,3.23985,3086.6,3085.9,2.91646]
[1732051695868,3.24,3086.5,3085.9,2.91646]
[1732051696036,3.23981,3086.6,3085.6,1.6349]
[1732051696243,3.24002,3086.4,3085.9,2.91647]
[1732051696455,4.85842,3086.7,3085.7,0.179839]
[1732051696769,1.6187,3086.7,3086.2,2.91611]
[1732051696977,1.6187,3086.7,3085.6,4.55164]
[1732051696978,3.2397,3086.7,3085.9,2.91641]
[1732051697181,3.24029,3086.2,3085.6,1.6349]
[1732051697378,3.24013,3086.3,3085.7,2.91662]
[1732051697561,3.23986,3086.6,3085.7,2.91661]
[1732051697746,3.78999,3086.5,3085.9,2.91646]
[1732051697950,3.24008,3086.4,3085.9,2.91646]
[1732051698149,3.23992,3086.5,3085.9,2.91646]
[1732051698528,3.24003,3086.4,3085.7,2.91663]
[1732051698883,6.48015,3086.4,3085.7,6.304742]
[1732051699236,3.24013,3086.3,3085.7,3.388112]
[1732051699652,3.24032,3086.2,3085.7,0.471502]
[1732051699829,3.24002,3086.4,3085.7,2.91666]
[1732051700051,3.24002,3086.4,3085.9,2.91648]
[1732051700244,3.23981,3086.6,3085.9,2.91648]
[1732051700245,3.23981,3086.6,3086.0,2.91632]
[1732051700485,3.23981,3086.6,3086.3,0.02106915]
[1732051700862,3.23992,3086.5,3086.3,0.02106915]
[1732051701254,3.24002,3086.4,3086.3,0.02106915]
[1732051702111,3.79002,3086.4,3086.3,0.02106915]
[1732051702401,3.23981,3086.6,3086.3,0.02106915]
[1732051702603,4.82395,3086.8,3086.3,0.02106915]
[1732051702897,3.23965,3086.8,3086.3,0.02106915]
[1732051703198,1.5689,3087.1,3086.3,0.02106915]
[1732051703370,1.5689,3087.4,3086.7,2.91565]
[1732051703562,3.2388,3087.6,3086.8,1.812665]
[1732051703774,3.2388,3087.6,3086.9,2.91548]
[1732051703980,3.23886,3087.5,3086.9,5.83096]
[1732051704203,3.23893,3087.5,3086.9,2.91548]
[1732051704353,3.23897,3087.4,3086.9,2.91548]
[1732051704551,3.23887,3087.5,3086.9,2.91547]
[1732051704890,0.55,3087.4,3086.8,1.812665]
[1732051705076,3.23908,3087.3,3086.8,1.812665]
[1732051705278,3.23908,3087.3,3086.8,4.728295]
[1732051705670,3.78898,3087.4,3086.9,2.91554]
[1732051706008,0.55,3087.6,3087.0,2.91535]
[1732051706159,0.55,3087.6,3087.1,2.91534]
[1732051706358,4.8076,3087.7,3086.9,3.0967565]
[1732051706680,4.8076,3087.7,3087.1,2.91527]
[1732051706849,4.8076,3087.7,3086.8,1.5211]
[1732051706850,1.5689,3087.7,3086.8,1.5211]
[1732051707054,0.29742004,3087.6,3086.5,4.52747]
[1732051707295,1.5789,3087.7,3086.6,2.91581]
[1732051707296,3.23929,3087.1,3086.6,2.91581]
[1732051707603,3.23929,3087.1,3086.5,1.6116]
[1732051707754,3.23927,3087.2,3086.5,1.6116]
[1732051707755,3.23944,3087.0,3086.5,4.5275]
[1732051707958,3.23944,3087.0,3086.5,1.6116]
[1732051708162,3.23901,3087.4,3086.7,2.91566]
[1732051708365,4.0865351,3087.3,3086.7,2.91568]
[1732051708573,3.78908,3087.3,3086.7,2.91568]
[1732051708807,3.23923,3087.2,3086.6,2.91582]
[1732051709302,3.23923,3087.2,3086.5,1.6116]
[1732051709303,3.23934,3087.1,3086.5,1.6116]
[1732051709596,3.23934,3087.1,3086.5,4.52748]
[1732051709985,3.23965,3086.8,3086.5,1.6116]
[1732051710285,3.78908,3087.3,3086.5,1.6116]
[1732051710286,3.23923,3087.2,3086.5,4.52752]
[1732051710502,3.23947,3087.0,3086.5,1.6116]
[1732051711095,3.23947,3087.0,3086.5,4.52749]
[1732051711398,6.47895,3087.0,3086.5,4.52749]
[1732051711560,3.23955,3086.9,3086.3,2.93711915]
[1732051711760,3.78944,3087.0,3086.3,0.02106915]
[1732051711973,3.23998,3086.5,3086.3,0.02106915]
[1732051712379,3.23955,3086.9,3086.3,0.02106915]
[1732051712583,3.23961,3086.8,3086.3,2.93713915]
[1732051712774,3.23986,3086.6,3086.3,0.02106915]
[1732051712975,3.78939,3087.0,3086.3,0.02106915]
[1732051713213,3.23963,3086.8,3086.3,0.02106915]
[1732051713417,7.02886,3087.0,3086.4,2.91594]
[1732051713629,1.6225,3087.1,3086.4,2.91594]
[1732051713772,0.55,3087.3,3086.6,4.52038]
[1732051713971,3.2392,3087.2,3086.6,2.056638]
[1732051714217,3.23902,3087.4,3086.8,2.91561]
[1732051714437,1.5122,3087.5,3086.6,4.52036]
[1732051714640,3.23924,3087.2,3086.6,4.52036]
[1732051714775,3.23924,3087.2,3086.7,2.91572]
[1732051715981,6.47803,3087.4,3086.8,2.91563]
[1732051716188,3.23897,3087.4,3086.9,2.91551]
[1732051716425,1.6665,3088.1,3087.2,1.658]
[1732051716724,1.6665,3088.1,3087.3,2.9151]
[1732051716725,3.23834,3088.0,3087.3,2.9151]
[1732051717029,3.23834,3088.0,3087.4,2.91498]
[1732051717190,3.23834,3088.0,3087.2,1.658]
[1732051717191,3.23866,3087.7,3087.2,1.658]
[1732051717381,3.2385,3087.9,3087.3,2.91516]
[1732051717581,3.2385,3087.9,3087.2,1.658]
[1732051717928,1.83315,3088.1,3087.2,1.658]
[1732051717929,6.46743,3087.7,3087.2,1.658]
[1732051718083,3.22868,3087.7,3087.2,1.658]
[1732051719245,3.78857,3087.8,3087.2,4.5732]
[1732051719597,3.78857,3087.8,3087.2,1.658]
[1732051720026,7.0272,3087.8,3087.2,1.658]
[1732051720185,7.0272,3087.8,3087.2,4.57323]
[1732051720186,3.78857,3087.8,3087.2,4.57323]
[1732051720530,3.78857,3087.8,3087.3,2.91515]
[1732051720712,3.78857,3087.8,3087.2,1.658]
[1732051720892,3.23839,3088.0,3087.2,1.658]
[1732051721438,3.23849,3087.9,3087.2,4.73905]
[1732051721724,3.23849,3087.9,3087.4,2.91505]
[1732051722098,2.67073885,3088.3,3087.9,2.91453]
[1732051722099,2.00596688,3088.3,3087.9,2.91453]
[1732051722298,1.5452,3088.4,3087.9,2.91453]
[1732051722299,3.23799,3088.4,3087.9,1.5123]
[1732051722502,3.23774,3088.6,3087.9,1.5123]
[1732051722697,1.5452,3088.7,3087.9,4.42685]
[1732051723082,3.23773,3088.6,3088.1,2.91439]
[1732051723817,1.5452,3088.7,3088.1,2.91439]
[1732051724301,3.23773,3088.6,3087.9,4.42687]
[1732051724486,3.23783,3088.5,3087.9,4.869557]
[1732051725724,3.23783,3088.5,3088.0,2.91449]
[1732051725927,4.78283,3088.7,3087.9,4.869557]
[1732051726227,4.78287,3088.7,3088.0,0.4869557]
[1732051726438,4.78287,3088.7,3088.0,3.4013957]
[1732051726941,3.23771,3088.6,3088.0,3.4013957]
[1732051727132,4.78287,3088.7,3088.0,2.91447]
[1732051727594,4.78287,3088.7,3088.1,2.91439]
[1732051727932,1.5452,3088.7,3088.0,2.91447]
[1732051728087,5.24332688,3089.0,3088.3,2.91414]
[1732051728287,5.24332688,3089.0,3088.3,5.8283]
[1732051728525,5.24332688,3089.0,3087.9,1.5123]
[1732051728735,2.00596688,3089.0,3088.6,2.91385]
[1732051729030,2.00596688,3089.3,3089.0,2.91356]
[1732051729234,5.58065204,3089.4,3089.0,0.291356]
[1732051729528,5.24284688,3089.4,3088.8,2.91368]
[1732051729735,3.23688,3089.4,3088.8,2.91368]
[1732051729934,1.6485,3088.9,3088.3,1.612]
[1732051730134,4.88598,3088.9,3088.0,1.612]
[1732051730452,5.24321688,3089.1,3088.4,2.91407]
[1732051730658,2.00596688,3089.2,3088.1,3.0]
[1732051730799,5.24304688,3089.2,3088.4,2.91412]
[1732051731006,3.2374,3088.9,3088.2,4.52624]
[1732051731344,3.2374,3088.9,3088.2,7.93324]
[1732051731643,3.23737,3089.0,3088.3,2.91416]
[1732051732654,3.23737,3089.0,3088.5,2.914]
[1732051732954,3.23708,3089.2,3088.6,2.91393]
[1732051733646,3.23728,3089.1,3088.4,2.91407]
[1732051733813,3.23728,3089.1,3088.5,3.496784]
[1732051734158,3.23719,3089.1,3088.5,2.91397]
[1732051734306,4.31923885,3089.5,3088.4,1.612]
[1732051734307,3.23687,3089.4,3088.4,1.612]
[1732051734509,3.23732,3089.0,3088.4,4.52611]
[1732051735651,3.23752,3088.8,3088.4,1.612]
[1732051736347,3.23762,3088.7,3088.4,1.612]
[1732051736565,1.6485,3089.0,3088.0,1.6133]
[1732051736720,3.23834,3088.0,3087.4,2.91498]
[1732051736919,3.23857,3087.8,3087.3,0.65333943]
[1732051737253,3.23857,3087.8,3087.2,2.91519]
[1732051737403,3.23857,3087.8,3087.2,5.83038]
[1732051737605,2.00596688,3088.5,3087.4,1.6562]
[1732051737832,3.2375,3088.8,3088.2,1.6562]
[1732051738153,3.23734,3089.0,3088.4,2.91407]
[1732051738381,3.23713,3089.2,3088.5,2.91395]
[1732051738538,3.23713,3089.2,3088.5,0.291395]
[1732051738861,3.23713,3089.2,3088.6,2.91393]
[1732051739226,1.571,3089.4,3088.6,2.91393]
[1732051739558,3.23725,3089.1,3088.5,2.91402]
[1732051739760,3.23725,3089.1,3088.6,2.91394]
[1732051740060,3.23725,3089.1,3088.4,3.371079]
[1732051740470,6.4745,3089.1,3088.6,2.91393]
[1732051740625,3.23725,3089.1,3088.6,2.91393]
[1732051740829,3.23701,3089.3,3088.2,1.6562]
[1732051741027,3.23705,3089.3,3088.4,1.5543]
[1732051741246,3.23705,3089.3,3088.7,2.91378]
[1732051741570,3.23679,3089.5,3088.8,2.91374]
[1732051741782,3.23679,3089.5,3088.9,2.91361]
[1732051742061,3.23682,3089.5,3088.9,2.91361]
[1732051742221,3.23682,3089.5,3089.0,2.91349]
[1732051742649,3.23666,3089.6,3089.1,2.91344]
[1732051742848,4.78997,3089.7,3089.1,2.91344]
[1732051743282,0.1404032,3089.9,3089.1,0.76836378]
[1732051743578,0.1404032,3089.9,3089.0,1.5361]
[1732051743579,3.23651,3089.8,3089.0,1.5361]
[1732051743719,3.23651,3089.8,3089.1,2.91341]
[1732051744568,3.23647,3089.8,3089.2,2.91331]
[1732051744768,0.1404032,3089.9,3089.4,2.91318]
[1732051745267,0.1404032,3089.9,3089.4,2.91313]
[1732051745560,0.1404032,3089.9,3089.4,2.91312]
[1732051746920,3.3767532,3089.9,3089.2,0.736283]
[1732051747128,3.3767532,3089.9,3089.1,2.91343]
[1732051747354,3.3767532,3089.9,3089.0,4.44957]
[1732051747355,0.1404032,3089.9,3089.2,2.91335]
[1732051747527,0.1404032,3089.9,3089.3,0.291335]
[1732051747853,0.1404032,3089.9,3089.2,2.91337]
[1732051748228,3.23646,3089.8,3089.0,1.5361]
[1732051748461,3.23646,3089.8,3089.1,0.45361]
[1732051748759,3.3767532,3089.9,3089.1,3.36707]
[1732051749372,3.23662,3089.7,3089.1,0.45361]
[1732051749925,3.23652,3089.8,3089.1,0.45361]
[1732051750127,6.47307,3089.8,3089.2,0.490326]
[1732051750420,0.1404032,3089.9,3089.2,3.403616]
[1732051750625,3.3767632,3089.9,3089.2,3.403616]
[1732051750870,3.3767632,3089.9,3089.3,0.3857226]
[1732051751037,3.3767632,3089.9,3089.3,3.2989926]
[1732051751772,3.3767632,3089.9,3089.3,0.3857226]
[1732051751985,3.23649,3089.8,3089.3,0.3857226]
[1732051752128,3.23679,3089.5,3089.3,0.3857226]
[1732051752461,3.23665,3089.7,3089.1,3.36701]
[1732051752621,3.23678,3089.5,3089.2,0.790311]
[1732051752827,3.23678,3089.5,3089.1,0.45361]
[1732051753057,3.23662,3089.7,3089.1,0.45361]
[1732051753371,3.23682,3089.5,3089.1,0.45361]
[1732051753677,3.23689,3089.4,3089.0,1.5361]
[1732051753845,3.23682,3089.5,3089.0,1.5361]
[1732051753846,3.23677,3089.5,3089.0,1.5361]
[1732051754181,3.23665,3089.7,3089.1,2.9134]
[1732051754466,3.23665,3089.7,3089.2,2.91332]
[1732051754669,0.1404032,3089.9,3089.4,2.91311]
[1732051754837,0.1404032,3089.9,3089.7,1.6419]
[1732051755245,0.1404032,3089.9,3089.8,2.9128]
[1732051755568,0.1404032,3089.9,3089.7,1.6419]
[1732051755963,0.1404032,3089.9,3089.7,4.55479]
[1732051756265,0.1404032,3089.9,3089.8,0.746774]
[1732051757115,0.1404032,3089.9,3089.7,1.6419]
[1732051758584,0.1404032,3089.9,3089.7,4.55471]
[1732051759283,0.1404032,3089.9,3089.8,2.9128]
[1732051761204,0.1404032,3089.9,3089.8,5.9128]
[1732051761404,0.1404032,3089.9,3089.8,7.5803]
[1732051761728,4.79383,3091.5,3090.8,2.91181]
[1732051762116,3.23473,3091.5,3091.0,1.5835]
[1732051763032,3.23457,3091.6,3091.1,2.91157]
[1732051763341,6.46922,3091.6,3091.0,2.324196]
[1732051763547,3.23481,3091.4,3091.0,2.324196]
[1732051763699,3.23481,3091.4,3090.8,2.91186]
[1732051764127,3.23481,3091.4,3090.9,2.58822]
[1732051765642,3.23469,3091.5,3090.9,2.58822]
[1732051765852,3.23461,3091.6,3090.9,2.58822]
[1732051765853,6.46926,3091.6,3091.0,2.58815]
[1732051766006,6.46927,3091.6,3091.0,2.58815]
[1732051766200,3.23453,3091.7,3091.1,2.58807]
[1732051766548,4.78001,3091.8,3091.0,2.9179072]
[1732051766549,3.23458,3091.6,3091.0,2.9179072]
[1732051766717,3.23458,3091.6,3091.1,0.36273292]
[1732051766903,8.01446,3091.8,3091.1,2.95075292]
[1732051767245,8.01446,3091.8,3091.2,0.55388529]
[1732051767246,3.23478,3091.4,3091.2,0.55388529]
[1732051767450,3.23515,3091.1,3090.7,1.5941]
[1732051767740,3.23494,3091.3,3090.7,7.1825]
[1732051767943,3.23472,3091.5,3090.8,3.565348]
[1732051768105,3.23472,3091.5,3090.9,2.5882]
[1732051768347,3.23489,3091.3,3090.8,0.977098]
[1732051768539,3.23472,3091.5,3090.9,0.8159538]
[1732051768737,3.23435,3091.9,3091.0,5.5226521]
[1732051768981,3.23443,3091.8,3091.2,4.10128]
[1732051769182,3.23434,3091.9,3091.3,2.58789]
[1732051769350,3.23467,3091.5,3091.2,1.5133]
[1732051769761,3.2346,3091.6,3091.2,1.5133]
[1732051770350,3.2346,3091.6,3091.3,0.21471606]
[1732051771161,6.46884,3091.8,3091.3,0.21471606]
[1732051771333,3.23448,3091.7,3091.3,0.21471606]
[1732051771996,6.46889,3091.8,3091.3,0.21471606]
[1732051772144,3.23444,3091.8,3091.3,0.21471606]
[1732051772345,3.23446,3091.7,3091.3,0.21471606]
[1732051772682,3.23447,3091.7,3091.3,0.21471606]
[1732051773787,3.23438,3091.8,3091.3,0.21471606]
[1732051773949,0.005,3092.0,3091.3,0.21471606]
[1732051774157,3.23458,3091.6,3091.3,0.21471606]
[1732051774607,3.21351085,3091.6,3091.3,0.21471606]
[1732051774743,3.23473,3091.5,3091.3,0.21471606]
[1732051774938,3.21351085,3091.6,3091.3,0.21471606]
[1732051775338,3.21351085,3091.6,3090.9,0.8159538]
[1732051775339,3.23519,3091.0,3090.9,1.6605]
[1732051775542,3.23519,3091.0,3089.8,0.02]
[1732051775543,3.2351,3091.1,3090.5,1.6605]
[1732051775991,3.23525,3091.0,3090.5,1.6605]
[1732051776153,3.23525,3091.0,3090.6,0.424908]
[1732051776489,3.2353,3090.9,3090.6,0.424908]
[1732051776983,3.23531,3090.9,3090.6,0.424908]
[1732051777287,3.23578,3090.5,3090.2,1.5297]
[1732051777639,6.47157,3090.5,3090.2,1.5297]
[1732051777842,3.23578,3090.5,3090.2,1.5297]
[1732051778440,3.23498,3091.2,3090.2,1.5297]
[1732051778641,3.2358,3090.5,3090.2,1.5297]
[1732051779157,3.2258,3090.5,3090.2,1.5297]
[1732051780740,3.23556,3090.7,3090.2,1.5297]
[1732051780990,3.23451,3091.7,3090.2,1.5297]
[1732051781140,3.23547,3090.8,3090.2,1.5297]
[1732051781337,3.23563,3090.6,3090.3,0.44642421]
[1732051781788,3.23535,3090.9,3090.4,2.58863]
[1732051781970,3.23551,3090.7,3090.4,0.45647542]
[1732051782660,3.23535,3090.9,3090.4,0.45647542]
[1732051782857,3.23535,3090.9,3090.3,2.58868]
[1732051783081,3.23544,3090.8,3090.3,2.58868]
[1732051783418,3.2351,3091.1,3090.5,2.58855]
[1732051783590,3.2352,3091.0,3090.5,2.58855]
[1732051784891,3.23509,3091.1,3090.5,2.5885]
[1732051785094,3.23509,3091.1,3090.6,0.25885]
[1732051785261,0.29792252,3091.0,3090.6,0.25885]
[1732051785460,6.47027,3091.1,3090.6,0.25885]
[1732051785661,3.53315034,3091.0,3090.7,0.284735]
[1732051785877,3.2352,3091.0,3090.7,0.284735]
[1732051786078,3.23522,3091.0,3090.3,3.000547]
[1732051786397,3.2353,3090.9,3090.4,2.5886]
[1732051786597,3.2353,3090.9,3090.4,3.6411847]
[1732051788071,1.5258,3091.6,3091.0,2.58813]
[1732051788363,0.29808012,3091.5,3091.2,1.5304]
[1732051788573,0.29817267,3091.4,3091.2,1.5304]
[1732051788855,6.46866,3091.9,3091.2,4.11834]
[1732051789059,0.29807263,3091.8,3091.3,2.99973]
[1732051789366,0.29807263,3091.7,3091.3,0.41184]
[1732051789530,0.29807263,3091.6,3091.3,0.41184]
[1732051789714,3.23443,3091.8,3091.3,0.41184]
[1732051790059,0.29810233,3091.7,3091.3,0.41184]
[1732051790237,0.29810233,3091.6,3091.3,2.99973]
[1732051790446,3.23459,3091.6,3091.3,0.41184]
[1732051790643,3.23459,3091.6,3091.2,1.5304]
[1732051791769,0.29825386,3091.5,3091.2,1.5304]
[1732051791914,3.23462,3091.6,3091.2,1.5304]
[1732051792121,3.23462,3091.6,3090.5,5.58854]
[1732051792122,0.29825469,3091.5,3090.9,1.5758]
[1732051792372,1.5308,3092.0,3090.5,4.5758]
[1732051792373,3.23519,3091.0,3090.5,4.5758]
[1732051792669,3.23532,3090.9,3090.5,4.98110417]
[1732051792834,3.23532,3090.9,3090.5,1.98110417]
[1732051793160,3.23532,3090.9,3090.5,1.5758]
[1732051793364,6.47071,3090.9,3090.5,1.5758]
[1732051793564,3.23532,3090.9,3090.5,1.5758]
[1732051793917,3.23546,3090.8,3090.3,2.58873]
[1732051794118,3.23566,3090.6,3090.2,1.5513]
[1732051794318,3.23566,3090.6,3090.0,2.58898]
[1732051794319,3.23573,3090.5,3090.0,2.58898]
[1732051794572,3.23573,3090.5,3090.1,0.672934]
[1732051794748,3.23574,3090.5,3090.1,0.672934]
[1732051794955,3.23547,3090.8,3090.1,0.672934]
[1732051795149,3.23567,3090.6,3090.2,0.3261864]
[1732051795351,3.23567,3090.6,3090.1,3.261824]
[1732051795552,3.23567,3090.6,3090.1,0.672934]
[1732051795763,3.23574,3090.5,3090.1,0.672934]
[1732051796267,3.23567,3090.6,3090.1,0.672934]
[1732051796568,3.23567,3090.6,3090.2,0.3672934]
[1732051796774,3.23573,3090.5,3090.2,0.3672934]
[1732051796926,3.23593,3090.3,3090.2,0.3672934]
[1732051797436,3.23605,3090.2,3089.9,1.5513]
[1732051797837,3.23593,3090.3,3089.9,1.5513]
[1732051798283,3.23624,3090.0,3089.9,1.5513]
[1732051798572,3.23635,3089.9,3089.5,4.5513]
[1732051798773,3.23635,3089.9,3089.5,4.810245]
[1732051798931,3.23609,3090.2,3089.5,7.399605]
[1732051798932,3.23625,3090.0,3089.5,7.399605]
[1732051799120,3.23625,3090.0,3089.6,0.73615246]
[1732051799337,3.23609,3090.2,3089.6,3.32542246]
[1732051799683,3.23617,3090.1,3089.6,3.32542246]
[1732051799878,3.23609,3090.2,3089.6,5.91469246]
[1732051800178,6.47221,3090.2,3089.7,0.81356675]
[1732051800659,3.23609,3090.2,3089.7,0.81356675]
[1732051800870,6.4722,3090.2,3089.7,0.81356675]
[1732051801181,3.23609,3090.2,3089.7,3.40280675]
[1732051801339,3.23587,3090.4,3089.7,3.40280675]
[1732051801340,3.23587,3090.4,3089.8,2.58911]
[1732051801526,0.29792585,3090.3,3089.7,0.81356675]
[1732051801748,3.23606,3090.2,3089.8,0.34028468]
[1732051801950,2.67073885,3090.7,3090.2,1.6281]
[1732051802244,3.23543,3090.8,3090.2,4.21685]
[1732051802449,3.2348,3091.4,3090.2,4.21685]
[1732051802450,0.005,3092.0,3091.9,2.5874]
[1732051802647,0.005,3092.0,3091.9,2.091189]
[1732051802846,0.005,3092.0,3091.9,1.5737]
[1732051803479,0.005,3092.0,3091.9,7.1611]
[1732051807113,0.005,3092.0,3091.9,7.1711]
[1732051807719,0.005,3092.0,3091.9,7.1811]
[1732051807864,0.1404032,3093.0,3092.9,5.58656]
[1732051810168,0.1404032,3093.0,3092.9,7.20116]
[1732051810393,0.005,3094.4,3094.0,2.58562]
[1732051811514,0.005,3094.4,3093.7,1.6046]
[1732051811666,0.005,3094.4,3093.6,2.58595]
[1732051811872,0.005,3094.4,3093.7,2.58588]
[1732051811873,3.23185,3094.3,3093.7,2.58588]
[1732051812223,3.23191,3094.2,3093.5,2.58605]
[1732051812367,3.23197,3094.1,3093.1,1.6046]
[1732051812572,3.23269,3093.4,3092.5,2.58688]
[1732051812774,1.6534,3093.5,3092.9,2.58654]
[1732051813003,1.6534,3093.5,3092.5,3.60815494]
[1732051813206,1.6534,3093.5,3092.9,2.58649]
[1732051813409,1.6534,3093.5,3093.0,2.58643]
[1732051813811,1.6534,3093.5,3092.9,2.58649]
[1732051814014,1.6534,3093.5,3093.0,2.58645]
[1732051814721,3.23248,3093.6,3092.6,3.0]
[1732051814722,1.6569,3093.8,3093.2,2.58629]
[1732051814917,1.6569,3093.8,3093.3,2.58617]
[1732051815071,1.6569,3094.2,3093.5,2.581]
[1732051815276,4.88884,3094.2,3093.6,2.58597]
[1732051815514,5.378224,3094.2,3093.6,2.58597]
[1732051815715,5.378224,3094.2,3093.5,2.581]
[1732051815920,2.146284,3094.2,3093.7,2.58583]
[1732051816218,2.146284,3094.2,3093.7,2.58586]
[1732051816625,1.6569,3094.2,3093.6,2.58591]
[1732051816785,1.6569,3094.2,3093.8,2.58581]
[1732051816990,1.6569,3094.2,3093.6,2.58591]
[1732051817173,1.6569,3094.2,3093.4,2.58612]
[1732051817379,3.2323,3093.8,3093.2,2.58628]
[1732051817618,3.23208,3094.0,3093.4,2.58612]
[1732051817919,4.88879,3094.2,3093.5,2.58606]
[1732051818130,1.6569,3094.2,3093.7,2.58581]
[1732051818279,5.378111,3094.2,3093.6,2.58593]
[1732051818496,2.146261,3094.2,3093.6,2.58592]
[1732051818833,2.146261,3094.2,3093.7,2.58589]
[1732051819144,2.146261,3094.2,3093.2,3.0]
[1732051819348,3.23211,3094.0,3093.3,2.58618]
[1732051819504,3.23211,3094.0,3093.3,2.58619]
[1732051819700,3.23211,3094.0,3093.4,2.58613]
[1732051819892,3.23211,3094.0,3093.5,2.58606]
[1732051820097,4.8888,3094.2,3093.5,2.586]
[1732051820336,0.48888,3094.1,3093.6,2.58597]
[1732051820559,4.8888,3094.2,3093.6,2.58597]
[1732051821050,4.8888,3094.2,3093.4,2.58613]
[1732051821051,3.232,3094.1,3093.4,2.58613]
[1732051821258,4.8888,3094.2,3093.6,2.58597]
[1732051821449,5.38137535,3094.2,3093.6,2.58597]
[1732051821600,0.49257535,3094.2,3093.7,4.11703]
[1732051821807,0.005,3094.4,3093.9,2.58568]
[1732051822017,0.005,3094.4,3093.9,5.17135]
[1732051822307,3.23672,3094.4,3093.7,2.58587]
[1732051822550,3.560367,3094.4,3093.7,2.58587]
[1732051822708,0.005,3094.4,3093.9,2.58566]
[1732051823145,0.005,3094.4,3093.8,1.5312]
[1732051823146,3.2367,3094.4,3093.8,2.5858]
[1732051823603,0.651826,3094.4,3093.8,2.5858]
[1732051823848,0.651826,3094.4,3093.9,2.58572]
[1732051824057,0.651826,3094.4,3093.7,2.58587]
[1732051824058,3.23175,3094.3,3093.7,2.58587]
[1732051824350,0.7115136,3094.3,3093.7,2.58587]
[1732051824558,0.005,3094.4,3093.7,2.58584]
[1732051824846,0.005,3094.4,3093.6,2.58598]
[1732051825152,0.005,3094.4,3093.9,2.58566]
[1732051825305,0.005,3094.4,3094.0,2.58561]
[1732051825507,0.005,3094.4,3094.1,2.58555]
[1732051825811,0.005,3094.4,3094.2,2.58542]
[1732051826008,0.005,3094.4,3094.3,2.58539]
[1732051826914,0.005,3094.4,3094.3,2.96483585]
[1732051827719,0.005,3094.4,3094.3,2.58539]
[1732051827925,0.005,3094.4,3094.3,5.58539]
[1732051832547,0.005,3094.4,3094.2,1.5094]
[1732051832746,0.005,3094.4,3093.9,1.5321]
[1732051833049,0.005,3094.4,3094.3,2.58539]
[1732051834965,0.005,3094.4,3094.3,5.58539]
[1732051836386,0.005,3094.4,3094.3,2.58539]
[1732051838150,0.005,3094.4,3094.3,7.21919]
[1732051838333,0.005,3094.4,3094.3,8.81902049]
[1732051838779,0.005,3094.4,3094.3,11.74636148]
[1732051840686,0.005,3094.4,3094.3,12.42115696]
[1732051841483,0.005,3094.4,3094.3,5.81902049]
[1732051841791,0.005,3094.4,3094.3,4.21919]
[1732051842140,0.005,3094.4,3094.3,7.82132647]
[1732051842674,0.005,3094.4,3094.3,10.82132647]
[1732051843057,0.005,3094.4,3094.3,7.21919]
[1732051843467,0.005,3094.4,3093.9,6.18785647]
[1732051843468,0.005,3094.4,3093.9,4.166]
[1732051843777,0.005,3094.4,3094.3,2.58539]
[1732051845188,0.005,3094.4,3094.3,5.58539]
[1732051847836,0.005,3094.4,3094.2,2.58544]
[1732051848116,0.005,3094.4,3094.3,2.58539]
[1732051848315,0.005,3094.4,3094.1,2.58548]
[1732051848670,0.005,3094.4,3093.5,5.23133647]
[1732051848671,1.5215,3094.3,3093.5,5.23133647]
[1732051848871,1.5215,3094.3,3093.6,0.61881765]
[1732051849082,3.47e-06,3095.3,3094.2,3.60213647]
[1732051849282,4.12527008,3097.9,3096.0,4.22317]
[1732051849283,3.2e-06,3096.1,3096.0,4.22317]
[1732051849587,3.2e-06,3096.1,3096.0,7.71460647]
[1732051849793,1.5215,3097.7,3096.3,0.02]
[1732051850002,1.5215,3097.7,3097.6,0.01]
[1732051850186,1.5215,3097.7,3096.5,0.01]
[1732051850404,0.01,3097.5,3095.8,0.01]
[1732051850602,0.01,3097.5,3095.3,0.01]
[1732051850603,1.56,3096.7,3095.3,0.01]
[1732051851011,1.56,3095.9,3094.9,3.61213647]
[1732051851227,1.56,3095.9,3095.1,0.1780028]
[1732051851415,1.56,3095.9,3095.3,0.01]